fUST/lending_fUST_20260416
["ID","MTS","AMOUNT","RATE_DAILY","PERIOD"]
[420620555,1776353441735,-300.6569066,8.219e-05,2]
[420620556,1776353441745,-1591.32,8.219e-05,2]
[420620557,1776353441755,-16539.52,8.219e-05,2]
[420620558,1776353441764,-2494.34,8.219e-05,2]
[420620559,1776353441774,-500.0,8.219e-05,2]
[420620560,1776353441784,-1123.35,8.219e-05,2]
[420620561,1776353441793,-824.01,8.219e-05,2]
[420620562,1776353441803,-500.0,8.219e-05,2]
[420620563,1776353441813,-8195.01,8.219e-05,2]
[420620564,1776353441823,-7954.1,8.219e-05,2]
[420620565,1776353441833,-500.0,8.219e-05,2]
[420620566,1776353441844,-500.0,8.219e-05,2]
[420620567,1776353441853,-500.0,8.219e-05,2]
[420620568,1776353441864,-500.0,8.219e-05,2]
[420620569,1776353441875,-1065.39,8.219e-05,2]
[420620570,1776353441885,-500.0,8.219e-05,2]
[420620571,1776353441895,-1046.79,8.219e-05,2]
[420620572,1776353441904,-500.0,8.219e-05,2]
[420620573,1776353441916,-2583.2,8.219e-05,2]
[420620574,1776353441926,-500.0,8.219e-05,2]
[420620575,1776353441935,-500.0,8.219e-05,2]
[420620576,1776353441945,-731.99,8.219e-05,2]
[420620577,1776353441955,-500.0,8.219e-05,2]
[420620578,1776353441964,-155.0,8.236e-05,2]
[420620579,1776353441974,-155.0,8.255e-05,2]
[420620580,1776353441984,-155.0,8.273e-05,2]
[420620581,1776353441994,-155.0,8.291e-05,2]
[420620582,1776353442003,-155.0,8.309e-05,2]
[420620583,1776353442014,-9715.8167082,8.325e-05,2]
[420620584,1776353442024,-3798.4474486,8.325e-05,2]
[420620585,1776353442033,-160.0,8.325e-05,2]
[420620586,1776353442043,-160.0,8.325e-05,2]
[420620587,1776353442054,-227.86987685,8.325e-05,2]
[420620588,1776353442063,-155.0,8.328e-05,2]
[420620589,1776353442073,-193.616349,8.33e-05,2]
[420620590,1776353442083,-155.0,8.346e-05,2]
[420620591,1776353442092,-155.0,8.364e-05,2]
[420620592,1776353442101,-155.0,8.382e-05,2]
[420620593,1776353442110,-155.0,8.401e-05,2]
[420620594,1776353442120,-155.0,8.419e-05,2]
[420620595,1776353442130,-155.0,8.437e-05,2]
[420620596,1776353442139,-2208.0,8.448e-05,2]
[420620597,1776353442148,-1408.0,8.448e-05,2]
[420620598,1776353442158,-645.0,8.448e-05,2]
[420620599,1776353442170,-441.0,8.448e-05,2]
[420620600,1776353442179,-739.0,8.448e-05,2]
[420620601,1776353442189,-184.0,8.448e-05,2]
[420620602,1776353442199,-155.0,8.455e-05,2]
[420620603,1776353442208,-503.54141208,8.473e-05,2]
[420620604,1776353442218,-155.0,8.474e-05,2]
[420620605,1776353442227,-155.0,8.492e-05,2]
[420620606,1776353442236,-500.0,8.493e-05,2]
[420620607,1776353442246,-800.53,8.493e-05,2]
[420620608,1776353442256,-792.82,8.493e-05,2]
[420620609,1776353442265,-904.86,8.493e-05,2]
[420620610,1776353442275,-796.73,8.493e-05,2]
[420620611,1776353442285,-856.42,8.493e-05,2]
[420620612,1776353442294,-500.0,8.493e-05,2]
[420620613,1776353442304,-500.0,8.493e-05,2]
[420620614,1776353442313,-881.59,8.493e-05,2]
[420620615,1776353442324,-500.0,8.493e-05,2]
[420620616,1776353442333,-1040.33,8.493e-05,2]
[420620617,1776353442343,-531.80125673,8.493e-05,2]
[420620618,1776353442352,-500.0,8.493e-05,2]
[420620619,1776353442362,-500.0,8.493e-05,2]
[420620620,1776353442371,-500.0,8.493e-05,2]
[420620621,1776353442381,-500.0,8.493e-05,2]
[420620622,1776353442390,-500.0,8.493e-05,2]
[420620623,1776353442399,-500.0,8.493e-05,2]
[420620624,1776353442410,-507.95,8.493e-05,2]
[420620625,1776353442419,-228.93503203,8.493e-05,2]
[420620626,1776353442428,-485.11017151,8.493e-05,2]
[420620627,1776353442437,-500.0,8.493e-05,2]
[420620628,1776353442449,-500.0,8.493e-05,2]
[420620629,1776353442460,-500.0,8.493e-05,2]
[420620630,1776353442470,-500.0,8.493e-05,2]
[420620631,1776353442480,-500.0,8.493e-05,2]
[420620632,1776353442489,-500.0,8.493e-05,2]
[420620633,1776353442499,-500.0,8.493e-05,2]
[420620634,1776353442508,-500.0,8.493e-05,2]
[420620635,1776353442519,-500.0,8.493e-05,2]
[420620636,1776353442529,-500.0,8.493e-05,2]
[420620637,1776353442538,-1379.61,8.493e-05,2]
[420620638,1776353442548,-164.09,8.493e-05,2]
[420620639,1776353442558,-500.0,8.493e-05,2]
[420620640,1776353442567,-583.56,8.493e-05,2]
[420620641,1776353442576,-500.0,8.493e-05,2]
[420620642,1776353442586,-500.0,8.493e-05,2]
[420620643,1776353442596,-500.0,8.493e-05,2]
[420620644,1776353442606,-594.58,8.493e-05,2]
[420620645,1776353442615,-385.51567942,8.493e-05,2]
[420620646,1776353442625,-500.0,8.493e-05,2]
[420620647,1776353442634,-1934.96,8.493e-05,2]
[420620648,1776353442643,-500.0,8.493e-05,2]
[420620649,1776353442653,-212.91099335,8.493e-05,2]
[420620650,1776353442664,-500.0,8.493e-05,2]
[420620651,1776353442674,-500.0,8.493e-05,2]
[420620652,1776353442683,-500.0,8.493e-05,2]
[420620653,1776353442693,-987.71,8.493e-05,2]
[420620654,1776353442703,-500.0,8.493e-05,2]
[420620656,1776353442712,-500.0,8.493e-05,2]
[420620658,1776353442722,-500.0,8.493e-05,2]
[420620660,1776353442732,-417.64702283,8.493e-05,2]
[420620662,1776353442742,-500.0,8.493e-05,2]
[420620664,1776353442751,-505.19963783,8.493e-05,2]
[420620666,1776353442761,-500.0,8.493e-05,2]
[420620668,1776353442771,-500.0,8.493e-05,2]
[420620670,1776353442781,-500.0,8.493e-05,2]
[420620673,1776353442791,-500.0,8.493e-05,2]
[420620675,1776353442801,-500.0,8.493e-05,2]
[420620676,1776353442810,-500.0,8.493e-05,2]
[420620677,1776353442819,-500.0,8.493e-05,2]
[420620678,1776353442828,-500.0,8.493e-05,2]
[420620679,1776353442838,-1405.28,8.493e-05,2]
[420620680,1776353442847,-500.0,8.493e-05,2]
[420620681,1776353442856,-500.0,8.493e-05,2]
[420620682,1776353442866,-564.92,8.493e-05,2]
[420620683,1776353442875,-500.0,8.493e-05,2]
[420620684,1776353442884,-500.0,8.493e-05,2]
[420620685,1776353442893,-500.0,8.493e-05,2]
[420620686,1776353442902,-1000.37,8.493e-05,2]
[420620687,1776353442913,-1463.45,8.493e-05,2]
[420620688,1776353442923,-500.0,8.493e-05,2]
[420620689,1776353442932,-500.0,8.493e-05,2]
[420620690,1776353442941,-500.0,8.493e-05,2]
[420620691,1776353442950,-500.0,8.493e-05,2]
[420620693,1776353442960,-500.0,8.493e-05,2]
[420620694,1776353442969,-500.0,8.493e-05,2]
[420620695,1776353442979,-1893.63,8.493e-05,2]
[420620696,1776353442988,-500.0,8.493e-05,2]
[420620697,1776353442998,-750.35,8.493e-05,2]
[420620698,1776353443007,-500.0,8.493e-05,2]
[420620699,1776353443016,-500.0,8.493e-05,2]
[420620700,1776353443025,-500.0,8.493e-05,2]
[420620701,1776353443035,-500.0,8.493e-05,2]
[420620702,1776353443044,-500.0,8.493e-05,2]
[420620704,1776353443054,-500.0,8.493e-05,2]
[420620706,1776353443063,-827.06,8.493e-05,2]
[420620708,1776353443073,-500.0,8.493e-05,2]
[420620709,1776353443082,-679.45,8.493e-05,2]
[420620710,1776353443091,-1325.62,8.493e-05,2]
[420620711,1776353443100,-1858.53,8.493e-05,2]
[420620712,1776353443110,-500.0,8.493e-05,2]
[420620713,1776353443119,-668.8,8.493e-05,2]
[420620714,1776353443128,-831.62,8.493e-05,2]
[420620715,1776353443137,-500.0,8.493e-05,2]
[420620716,1776353443146,-1194.1,8.493e-05,2]
[420620717,1776353443156,-1106.67,8.493e-05,2]
[420620718,1776353443166,-842.92,8.493e-05,2]
[420620719,1776353443175,-500.0,8.493e-05,2]
[420620721,1776353443184,-539.91863447,8.493e-05,2]
[420620722,1776353443194,-1065.05,8.493e-05,2]
[420620723,1776353443203,-500.0,8.493e-05,2]
[420620724,1776353443212,-580.7,8.493e-05,2]
[420620725,1776353443221,-543.62,8.493e-05,2]
[420620726,1776353443230,-1865.77,8.493e-05,2]
[420620727,1776353443240,-500.0,8.493e-05,2]
[420620728,1776353443249,-647.23,8.493e-05,2]
[420620729,1776353443259,-238.31813556,8.493e-05,2]
[420620730,1776353443269,-3575.53,8.493e-05,2]
[420620731,1776353443279,-500.0,8.493e-05,2]
[420620732,1776353443288,-500.0,8.493e-05,2]
[420620733,1776353443297,-500.0,8.493e-05,2]
[420620734,1776353443306,-8428.3,8.493e-05,2]
[420620735,1776353443316,-500.0,8.493e-05,2]
[420620736,1776353443325,-500.0,8.493e-05,2]
[420620737,1776353443334,-5335.71,8.493e-05,2]
[420620738,1776353443344,-500.0,8.493e-05,2]
[420620739,1776353443353,-500.0,8.493e-05,2]
[420620740,1776353443367,-1394.57,8.493e-05,2]
[420620741,1776353443376,-500.0,8.493e-05,2]
[420620742,1776353443386,-893.52,8.493e-05,2]
[420620743,1776353443395,-500.0,8.493e-05,2]
[420620744,1776353443404,-500.0,8.493e-05,2]
[420620745,1776353443415,-500.0,8.493e-05,2]
[420620746,1776353443425,-3714.2,8.493e-05,2]
[420620747,1776353443434,-500.0,8.493e-05,2]
[420620748,1776353443443,-500.0,8.493e-05,2]
[420620749,1776353443452,-500.0,8.493e-05,2]
[420620750,1776353443462,-500.0,8.493e-05,2]
[420620751,1776353443472,-566.96,8.493e-05,2]
[420620752,1776353443481,-737.56,8.493e-05,2]
[420620753,1776353443490,-500.0,8.493e-05,2]
[420620754,1776353443500,-155.4435306,8.493e-05,2]
[420620755,1776353443509,-855.82,8.493e-05,2]
[420620756,1776353443519,-1776.71,8.493e-05,2]
[420620757,1776353443528,-500.0,8.493e-05,2]
[420620758,1776353443541,-206.20967051,8.493e-05,2]
[420620759,1776353443551,-500.0,8.493e-05,2]
[420620760,1776353443560,-7550.65,8.493e-05,2]
[420620761,1776353443569,-782.35,8.493e-05,2]
[420620762,1776353443579,-500.0,8.493e-05,2]
[420620763,1776353443588,-5124.46,8.493e-05,2]
[420620764,1776353443598,-500.0,8.493e-05,2]
[420620765,1776353443607,-532.32872189,8.493e-05,2]
[420620766,1776353443618,-7347.94,8.493e-05,2]
[420620767,1776353443627,-5688.91,8.493e-05,2]
[420620768,1776353443637,-500.0,8.493e-05,2]
[420620769,1776353443647,-2412.62,8.493e-05,2]
[420620770,1776353443657,-500.0,8.493e-05,2]
[420620771,1776353443667,-564.42052453,8.493e-05,2]
[420620772,1776353443677,-500.0,8.493e-05,2]
[420620773,1776353443686,-837.43,8.493e-05,2]
[420620774,1776353443696,-500.0,8.493e-05,2]
[420620775,1776353443705,-1827.06,8.493e-05,2]
[420620776,1776353443715,-539.86,8.493e-05,2]
[420620777,1776353443724,-186.57,8.493e-05,2]
[420620778,1776353443735,-1623.05,8.493e-05,2]
[420620779,1776353443744,-830.99,8.493e-05,2]
[420620780,1776353443754,-500.0,8.493e-05,2]
[420620781,1776353443763,-500.0,8.493e-05,2]
[420620782,1776353443773,-500.0,8.493e-05,2]
[420620783,1776353443782,-500.0,8.493e-05,2]
[420620784,1776353443792,-500.0,8.493e-05,2]
[420620785,1776353443802,-4129.34,8.493e-05,2]
[420620786,1776353443811,-885.19,8.493e-05,2]
[420620787,1776353443820,-525.15,8.493e-05,2]
[420620788,1776353443830,-5451.01,8.493e-05,2]
[420620789,1776353443839,-2343.86,8.493e-05,2]
[420620791,1776353443848,-701.19,8.493e-05,2]
[420620792,1776353443858,-1042.56,8.493e-05,2]
[420620794,1776353443867,-7926.08,8.493e-05,2]
[420620795,1776353443876,-1701.41,8.493e-05,2]
[420620796,1776353443886,-500.0,8.493e-05,2]
[420620798,1776353443895,-931.08,8.493e-05,2]
[420620800,1776353443903,-1591.17,8.493e-05,2]
[420620801,1776353443913,-6086.57,8.493e-05,2]
[420620803,1776353443923,-524.8,8.493e-05,2]
[420620804,1776353443932,-500.0,8.493e-05,2]
[420620806,1776353443942,-788.32,8.493e-05,2]
[420620808,1776353443951,-500.0,8.493e-05,2]
[420620809,1776353443960,-553.06,8.493e-05,2]
[420620811,1776353443969,-3859.87,8.493e-05,2]
[420620813,1776353443979,-2708.06,8.493e-05,2]
[420620815,1776353443990,-1123.66,8.493e-05,2]
[420620817,1776353443999,-8302.11,8.493e-05,2]
[420620818,1776353444008,-825.32,8.493e-05,2]
[420620820,1776353444017,-4881.76,8.493e-05,2]
[420620822,1776353444026,-500.0,8.493e-05,2]
[420620823,1776353444035,-500.0,8.493e-05,2]
[420620825,1776353444044,-2332.8,8.493e-05,2]
[420620826,1776353444054,-1645.53,8.493e-05,2]
[420620827,1776353444063,-500.0,8.493e-05,2]
[420620828,1776353444072,-1144.48,8.493e-05,2]
[420620829,1776353444082,-500.0,8.493e-05,2]
[420620830,1776353444091,-500.0,8.493e-05,2]
[420620831,1776353444101,-19207.5,8.493e-05,2]
[420620833,1776353444111,-500.0,8.493e-05,2]
[420620835,1776353444120,-602.67,8.493e-05,2]
[420620837,1776353444129,-500.0,8.493e-05,2]
[420620840,1776353444139,-1147.71,8.493e-05,2]
[420620841,1776353444148,-500.0,8.493e-05,2]
[420620844,1776353444159,-500.0,8.493e-05,2]
[420620845,1776353444168,-500.0,8.493e-05,2]
[420620847,1776353444177,-500.0,8.493e-05,2]
[420620849,1776353444187,-8338.2,8.493e-05,2]
[420620851,1776353444196,-11107.2,8.493e-05,2]
[420620853,1776353444205,-5911.54,8.493e-05,2]
[420620855,1776353444214,-1281.07,8.493e-05,2]
[420620857,1776353444224,-883.31,8.493e-05,2]
[420620859,1776353444233,-7036.41,8.493e-05,2]
[420620861,1776353444243,-2794.34,8.493e-05,2]
[420620862,1776353444252,-803.31,8.493e-05,2]
[420620863,1776353444262,-500.0,8.493e-05,2]
[420620864,1776353444272,-1591.32,8.493e-05,2]
[420620865,1776353444281,-16539.52,8.493e-05,2]
[420620866,1776353444290,-2494.34,8.493e-05,2]
[420620867,1776353444300,-500.0,8.493e-05,2]
[420620868,1776353444310,-1123.35,8.493e-05,2]
[420620869,1776353444319,-824.01,8.493e-05,2]
[420620870,1776353444329,-500.0,8.493e-05,2]
[420620871,1776353444339,-8195.01,8.493e-05,2]
[420620872,1776353444348,-7954.1,8.493e-05,2]
[420620873,1776353444358,-500.0,8.493e-05,2]
[420620874,1776353444368,-500.0,8.493e-05,2]
[420620875,1776353444377,-500.0,8.493e-05,2]
[420620876,1776353444387,-1065.39,8.493e-05,2]
[420620877,1776353444396,-500.0,8.493e-05,2]
[420620878,1776353444405,-1046.79,8.493e-05,2]
[420620879,1776353444415,-500.0,8.493e-05,2]
[420620880,1776353444425,-2583.2,8.493e-05,2]
[420620881,1776353444435,-500.0,8.493e-05,2]
[420620882,1776353444444,-467.21247561,8.493e-05,2]
[420620883,1776353444453,-500.0,8.493e-05,2]
[420620884,1776353444462,-155.0,8.51e-05,2]
[420620885,1776353444471,-162.380719,8.512e-05,2]
[420620886,1776353444481,-537.6845,8.512e-05,2]
[420620887,1776353444490,-478.75725327,8.512e-05,2]
[420620888,1776353444499,-1100.0178,8.512e-05,2]
[420620889,1776353444508,-537.6845,8.512e-05,2]
[420620890,1776353444518,-2150.738,8.512e-05,2]
[420620891,1776353444528,-276.42320153,8.512e-05,2]
[420620892,1776353444537,-155.0,8.528e-05,2]
[420620893,1776353444547,-1000.0,8.53e-05,2]
[420620894,1776353444556,-2167.891738,8.534e-05,2]
[420620895,1776353444566,-847.5481875,8.534e-05,2]
[420620896,1776353444575,-240.71316312,8.536e-05,2]
[420620897,1776353444585,-155.0,8.547e-05,2]
[420620898,1776353444734,-155.0,8.565e-05,2]
[420620899,1776353444743,-557.5788265,8.567e-05,2]
[420620900,1776353444753,-266.866,8.568e-05,2]
[420620901,1776353444762,-155.0,8.583e-05,2]
[420620902,1776353444775,-155.0,8.602e-05,2]
[420620903,1776353444785,-155.0,8.62e-05,2]
[420620904,1776353444795,-578.20924308,8.622e-05,2]
[420620905,1776353444804,-193.616349,8.63e-05,2]
[420620906,1776353444813,-155.0,8.638e-05,2]
[420620907,1776353444822,-155.0,8.656e-05,2]
[420620908,1776353444832,-155.0,8.675e-05,2]
[420620909,1776353444842,-599.60298507,8.677e-05,2]
[420620910,1776353444851,-155.0,8.693e-05,2]
[420620911,1776353444860,-155.0,8.711e-05,2]
[420620912,1776353444870,-155.0,8.729e-05,2]
[420620913,1776353444879,-621.78829552,8.732e-05,2]
[420620914,1776353444889,-500.0,8.741e-05,2]
[420620915,1776353444898,-574.23706927,8.741e-05,2]
[420620916,1776353444908,-500.0,8.741e-05,2]
[420620917,1776353444917,-505.06532584,8.741e-05,2]
[420620918,1776353444926,-501.80749143,8.741e-05,2]
[420620919,1776353444935,-500.0,8.741e-05,2]
[420620920,1776353444944,-155.0,8.748e-05,2]
[420620921,1776353444953,-155.0,8.766e-05,2]
[420620922,1776353444962,-800.53,8.767e-05,2]
[420620923,1776353444971,-792.82,8.767e-05,2]
[420620924,1776353444980,-904.86,8.767e-05,2]
[420620925,1776353444989,-796.73,8.767e-05,2]
[420620926,1776353444998,-856.42,8.767e-05,2]
[420620927,1776353445008,-563.09,8.767e-05,2]
[420620928,1776353445018,-500.0,8.767e-05,2]
[420620929,1776353445026,-881.59,8.767e-05,2]
[420620930,1776353445035,-500.0,8.767e-05,2]
[420620931,1776353445044,-1040.33,8.767e-05,2]
[420620932,1776353445053,-546.12,8.767e-05,2]
[420620933,1776353445062,-500.0,8.767e-05,2]
[420620934,1776353445071,-500.0,8.767e-05,2]
[420620935,1776353445081,-500.0,8.767e-05,2]
[420620936,1776353445091,-500.0,8.767e-05,2]
[420620937,1776353445100,-500.0,8.767e-05,2]
[420620938,1776353445109,-507.95,8.767e-05,2]
[420620939,1776353445118,-500.0,8.767e-05,2]
[420620940,1776353445127,-222.33,8.767e-05,2]
[420620941,1776353445136,-500.0,8.767e-05,2]
[420620942,1776353445145,-569.16,8.767e-05,2]
[420620943,1776353445156,-194.88538292,8.767e-05,2]
[420620944,1776353445166,-500.0,8.767e-05,2]
[420620945,1776353445174,-500.0,8.767e-05,2]
[420620946,1776353445184,-500.0,8.767e-05,2]
[420620947,1776353445194,-500.0,8.767e-05,2]
[420620948,1776353445203,-500.0,8.767e-05,2]
[420620949,1776353445212,-1379.61,8.767e-05,2]
[420620950,1776353445221,-500.0,8.767e-05,2]
[420620951,1776353445231,-583.56,8.767e-05,2]
[420620952,1776353445240,-500.0,8.767e-05,2]
[420620953,1776353445248,-500.0,8.767e-05,2]
[420620954,1776353445258,-500.0,8.767e-05,2]
[420620955,1776353445268,-594.58,8.767e-05,2]
[420620956,1776353445277,-500.0,8.767e-05,2]
[420620957,1776353445286,-1934.96,8.767e-05,2]
[420620958,1776353445296,-500.0,8.767e-05,2]
[420620959,1776353445306,-500.0,8.767e-05,2]
[420620960,1776353445315,-500.0,8.767e-05,2]
[420620961,1776353445324,-500.0,8.767e-05,2]
[420620962,1776353445333,-987.71,8.767e-05,2]
[420620963,1776353445342,-500.0,8.767e-05,2]
[420620964,1776353445351,-500.0,8.767e-05,2]
[420620966,1776353445360,-500.0,8.767e-05,2]
[420620968,1776353445370,-500.0,8.767e-05,2]
[420620969,1776353445379,-500.0,8.767e-05,2]
[420620970,1776353445387,-500.0,8.767e-05,2]
[420620971,1776353445397,-500.0,8.767e-05,2]
[420620972,1776353445407,-500.0,8.767e-05,2]
[420620973,1776353445417,-500.0,8.767e-05,2]
[420620974,1776353445425,-500.0,8.767e-05,2]
[420620975,1776353445434,-1405.28,8.767e-05,2]
[420620976,1776353445443,-500.0,8.767e-05,2]
[420620977,1776353445453,-500.0,8.767e-05,2]
[420620978,1776353445462,-564.92,8.767e-05,2]
[420620980,1776353445471,-500.0,8.767e-05,2]
[420620981,1776353445481,-500.0,8.767e-05,2]
[420620982,1776353445490,-500.0,8.767e-05,2]
[420620983,1776353445500,-1000.37,8.767e-05,2]
[420620984,1776353445509,-1463.45,8.767e-05,2]
[420620985,1776353445518,-500.0,8.767e-05,2]
[420620986,1776353445527,-500.0,8.767e-05,2]
[420620987,1776353445536,-500.0,8.767e-05,2]
[420620988,1776353445546,-500.0,8.767e-05,2]
[420620989,1776353445555,-500.0,8.767e-05,2]
[420620990,1776353445564,-500.0,8.767e-05,2]
[420620991,1776353445573,-1893.63,8.767e-05,2]
[420620992,1776353445582,-500.0,8.767e-05,2]
[420620993,1776353445592,-750.35,8.767e-05,2]
[420620994,1776353445601,-500.0,8.767e-05,2]
[420620995,1776353445611,-500.0,8.767e-05,2]
[420620996,1776353445620,-506.64471383,8.767e-05,2]
[420620997,1776353445629,-500.0,8.767e-05,2]
[420620998,1776353445639,-500.0,8.767e-05,2]
[420620999,1776353445648,-500.0,8.767e-05,2]
[420621000,1776353445657,-827.06,8.767e-05,2]
[420621002,1776353445668,-500.0,8.767e-05,2]
[420621003,1776353445677,-679.45,8.767e-05,2]
[420621004,1776353445687,-1325.62,8.767e-05,2]
[420621005,1776353445696,-1858.53,8.767e-05,2]
[420621006,1776353445705,-668.8,8.767e-05,2]
[420621007,1776353445714,-500.0,8.767e-05,2]
[420621009,1776353445724,-831.62,8.767e-05,2]
[420621011,1776353445733,-500.0,8.767e-05,2]
[420621012,1776353445743,-1194.1,8.767e-05,2]
[420621013,1776353445752,-1106.67,8.767e-05,2]
[420621014,1776353445761,-842.92,8.767e-05,2]
[420621015,1776353445770,-500.0,8.767e-05,2]
[420621016,1776353445780,-1065.05,8.767e-05,2]
[420621017,1776353445789,-500.0,8.767e-05,2]
[420621018,1776353445799,-580.7,8.767e-05,2]
[420621019,1776353445808,-543.62,8.767e-05,2]
[420621020,1776353445817,-1865.77,8.767e-05,2]
[420621021,1776353445826,-500.0,8.767e-05,2]
[420621022,1776353445837,-647.23,8.767e-05,2]
[420621023,1776353445846,-3575.53,8.767e-05,2]
[420621024,1776353445856,-500.0,8.767e-05,2]
[420621025,1776353445866,-500.0,8.767e-05,2]
[420621026,1776353445876,-502.24430356,8.767e-05,2]
[420621028,1776353445885,-8428.3,8.767e-05,2]
[420621029,1776353445894,-500.0,8.767e-05,2]
[420621031,1776353445903,-500.0,8.767e-05,2]
[420621033,1776353445912,-5335.71,8.767e-05,2]
[420621034,1776353445921,-500.0,8.767e-05,2]
[420621035,1776353445931,-500.0,8.767e-05,2]
[420621036,1776353445940,-1394.57,8.767e-05,2]
[420621038,1776353445950,-500.0,8.767e-05,2]
[420621039,1776353445960,-893.52,8.767e-05,2]
[420621040,1776353445971,-500.0,8.767e-05,2]
[420621041,1776353445980,-500.0,8.767e-05,2]
[420621042,1776353445991,-500.0,8.767e-05,2]
[420621043,1776353446002,-3714.2,8.767e-05,2]
[420621044,1776353446012,-500.0,8.767e-05,2]
[420621045,1776353446021,-406.31471012,8.767e-05,2]
[420621046,1776353446031,-500.0,8.767e-05,2]
[420621047,1776353446040,-500.0,8.767e-05,2]
[420621048,1776353446052,-566.96,8.767e-05,2]
[420621049,1776353446060,-737.56,8.767e-05,2]
[420621050,1776353446070,-500.0,8.767e-05,2]
[420621051,1776353446079,-855.82,8.767e-05,2]
[420621052,1776353446087,-1776.71,8.767e-05,2]
[420621053,1776353446097,-500.0,8.767e-05,2]
[420621054,1776353446106,-500.0,8.767e-05,2]
[420621055,1776353446115,-7550.65,8.767e-05,2]
[420621056,1776353446124,-782.35,8.767e-05,2]
[420621057,1776353446134,-500.0,8.767e-05,2]
[420621058,1776353446144,-5124.46,8.767e-05,2]
[420621059,1776353446155,-500.0,8.767e-05,2]
[420621060,1776353446166,-7347.94,8.767e-05,2]
[420621061,1776353446175,-5688.91,8.767e-05,2]
[420621062,1776353446184,-500.0,8.767e-05,2]
[420621063,1776353446194,-2412.62,8.767e-05,2]
[420621064,1776353446203,-500.0,8.767e-05,2]
[420621066,1776353446212,-500.0,8.767e-05,2]
[420621067,1776353446221,-837.43,8.767e-05,2]
[420621068,1776353446230,-500.0,8.767e-05,2]
[420621069,1776353446242,-1827.06,8.767e-05,2]
[420621070,1776353446252,-539.86,8.767e-05,2]
[420621071,1776353446262,-1623.05,8.767e-05,2]
[420621072,1776353446272,-830.99,8.767e-05,2]
[420621073,1776353446282,-500.0,8.767e-05,2]
[420621074,1776353446295,-500.0,8.767e-05,2]
[420621075,1776353446304,-500.0,8.767e-05,2]
[420621076,1776353446313,-500.0,8.767e-05,2]
[420621078,1776353446322,-500.0,8.767e-05,2]
[420621079,1776353446331,-4129.34,8.767e-05,2]
[420621081,1776353446341,-885.19,8.767e-05,2]
[420621082,1776353446350,-525.15,8.767e-05,2]
[420621083,1776353446359,-5451.01,8.767e-05,2]
[420621084,1776353446368,-2343.86,8.767e-05,2]
[420621085,1776353446377,-701.19,8.767e-05,2]
[420621086,1776353446386,-1042.56,8.767e-05,2]
[420621087,1776353446395,-7926.08,8.767e-05,2]
[420621088,1776353446405,-1701.41,8.767e-05,2]
[420621089,1776353446415,-500.0,8.767e-05,2]
[420621090,1776353446424,-931.08,8.767e-05,2]
[420621092,1776353446433,-1591.17,8.767e-05,2]
[420621093,1776353446442,-6086.57,8.767e-05,2]
[420621095,1776353446451,-524.8,8.767e-05,2]
[420621097,1776353446460,-500.0,8.767e-05,2]
[420621099,1776353446470,-788.32,8.767e-05,2]
[420621102,1776353446479,-500.0,8.767e-05,2]
[420621103,1776353446489,-553.06,8.767e-05,2]
[420621105,1776353446501,-3859.87,8.767e-05,2]
[420621107,1776353446511,-2708.06,8.767e-05,2]
[420621109,1776353446520,-1123.66,8.767e-05,2]
[420621112,1776353446529,-8302.11,8.767e-05,2]
[420621114,1776353446538,-825.32,8.767e-05,2]
[420621116,1776353446548,-4881.76,8.767e-05,2]
[420621118,1776353446557,-500.0,8.767e-05,2]
[420621120,1776353446567,-500.0,8.767e-05,2]
[420621122,1776353446576,-2332.8,8.767e-05,2]
[420621124,1776353446585,-1645.53,8.767e-05,2]
[420621126,1776353446594,-500.0,8.767e-05,2]
[420621128,1776353446604,-1144.48,8.767e-05,2]
[420621130,1776353446613,-200.81195943,8.767e-05,2]
[420621132,1776353446623,-500.0,8.767e-05,2]
[420621134,1776353446632,-19207.5,8.767e-05,2]